fUST/lending_fUST_20251119
["ID","MTS","AMOUNT","RATE_DAILY","PERIOD"]
[394432090,1763567440546,-500.0,0.00012994,2]
[394432091,1763567440557,-1959.0,0.00012994,2]
[394432092,1763567440567,-500.0,0.00012994,2]
[394432093,1763567440576,-500.0,0.00012994,2]
[394432094,1763567440586,-500.0,0.00012998,2]
[394432095,1763567440596,-500.0,0.00012998,2]
[394432096,1763567440605,-151.0,0.00012998,2]
[394432097,1763567440614,-200.0,0.00013,2]
[394432098,1763567440624,-151.0,0.00013,2]
[394432099,1763567440633,-151.0,0.00013,2]
[394432100,1763567440642,-500.0,0.00013022,2]
[394432101,1763567440651,-1959.0,0.00013022,2]
[394432102,1763567440660,-500.0,0.00013022,2]
[394432103,1763567440670,-254.08719922,0.00013022,2]
[394432104,1763567440678,-500.0,0.00013025,2]
[394432105,1763567440689,-500.0,0.00013025,2]
[394432106,1763567440698,-254.3822629,0.00013025,2]
[394432107,1763567440707,-500.0,0.00013049,2]
[394432108,1763567440717,-1959.0,0.00013049,2]
[394432109,1763567440726,-500.0,0.00013049,2]
[394432110,1763567440736,-500.0,0.00013053,2]
[394432111,1763567440746,-500.0,0.00013053,2]
[394432112,1763567440755,-500.0,0.00013077,2]
[394432113,1763567440765,-1959.0,0.00013077,2]
[394432114,1763567440774,-500.0,0.00013077,2]
[394432115,1763567440783,-500.0,0.0001308,2]
[394432116,1763567440792,-500.0,0.0001308,2]
[394432117,1763567440803,-638.0,0.00013104,2]
[394432118,1763567440812,-1959.0,0.00013104,2]
[394432119,1763567440822,-500.0,0.00013104,2]
[394432120,1763567440831,-500.0,0.00013108,2]
[394432121,1763567440840,-500.0,0.00013108,2]
[394432122,1763567440849,-1959.0,0.00013131,2]
[394432123,1763567440858,-500.0,0.00013131,2]
[394432124,1763567440867,-500.0,0.00013135,2]
[394432125,1763567440877,-500.0,0.00013135,2]
[394432126,1763567440886,-1959.0,0.00013159,2]
[394432127,1763567440896,-500.0,0.00013159,2]
[394432128,1763567440905,-441.68803233,0.00013162,2]
[394432129,1763567440914,-1959.0,0.00013186,2]
[394432130,1763567440923,-500.0,0.00013186,2]
[394432131,1763567440932,-1959.0,0.00013214,2]
[394432132,1763567440942,-513.0,0.00013214,2]
[394432133,1763567440951,-562.20848035,0.00013236,2]
[394432134,1763567440961,-1011.97526463,0.00013236,2]
[394432135,1763567440970,-1959.0,0.00013241,2]
[394432136,1763567440980,-521.31272549,0.00013255,2]
[394432137,1763567440989,-938.36290588,0.00013255,2]
[394432138,1763567440998,-1959.0,0.00013268,2]
[394432139,1763567441007,-1959.0,0.00013296,2]
[394432140,1763567441016,-1959.0,0.00013323,2]
[394432141,1763567441025,-300.0,0.00013333,2]
[394432142,1763567441034,-300.0,0.00013333,2]
[394432143,1763567441044,-300.0,0.00013333,2]
[394432144,1763567441053,-300.0,0.00013333,2]
[394432145,1763567441062,-300.0,0.00013333,2]
[394432146,1763567441071,-300.0,0.00013333,2]
[394432147,1763567441081,-300.0,0.00013333,2]
[394432148,1763567441090,-300.0,0.00013333,2]
[394432149,1763567441099,-300.0,0.00013333,2]
[394432150,1763567441109,-300.0,0.00013333,2]
[394432151,1763567441118,-300.0,0.00013333,2]
[394432152,1763567441127,-300.0,0.00013333,2]
[394432153,1763567441137,-300.0,0.00013333,2]
[394432154,1763567441146,-300.0,0.00013333,2]
[394432155,1763567441155,-300.0,0.00013333,2]
[394432156,1763567441164,-600.0,0.00013333,2]
[394432157,1763567441174,-1959.0,0.00013351,2]
[394432158,1763567441183,-1959.0,0.00013378,2]
[394432159,1763567441192,-1959.0,0.00013405,2]
[394432160,1763567441202,-1959.0,0.00013433,2]
[394432161,1763567441211,-1959.0,0.0001346,2]
[394432162,1763567441221,-1959.0,0.00013488,2]
[394432163,1763567441231,-1959.0,0.00013515,2]
[394432164,1763567441342,-1000.0,0.00013521,2]
[394432165,1763567441352,-1959.0,0.00013542,2]
[394432166,1763567441362,-1959.0,0.0001357,2]
[394432167,1763567441372,-1977.20164112,0.00013597,2]
[394432168,1763567441382,-2544.3093,0.00013699,2]
[394432169,1763567441392,-497.856658,0.00013699,2]
[394432170,1763567441403,-1602.49645875,0.00014068,2]
[394432171,1763567441412,-500.0,0.00014089,2]
[394432172,1763567441421,-420.0,0.00014113,2]
[394432173,1763567441431,-500.0,0.00014123,2]
[394432174,1763567441441,-500.0,0.00014123,2]
[394432175,1763567441451,-500.0,0.00014123,2]
[394432176,1763567441460,-500.0,0.00014123,2]
[394432177,1763567441470,-500.0,0.00014123,2]
[394432178,1763567441480,-500.0,0.00014123,2]
[394432179,1763567441489,-500.0,0.00014123,2]
[394432180,1763567441498,-500.0,0.00014123,2]
[394432181,1763567441508,-227.97904157,0.00014123,2]
[394432182,1763567441518,-501.23325128,0.00014275,2]
[394432183,1763567441527,-450.87845856,0.00014388,2]
[394432184,1763567441536,-475.0590233,0.0001442,2]
[394432185,1763567441545,-226.6219768,0.00014433,2]
[394432186,1763567441558,-83881.6419873,0.00014521,2]
[394432187,1763567441567,-151.000082,0.00014521,2]
[394432188,1763567441576,-375.985937,0.00014521,2]
[394432189,1763567441585,-375.985937,0.00014521,2]
[394432190,1763567441594,-375.985937,0.00014521,2]
[394432191,1763567441603,-375.985937,0.00014521,2]
[394432192,1763567441612,-151.0,0.00014521,2]
[394432193,1763567441620,-154.30988695,0.00014566,2]
[394432194,1763567441630,-617.23954782,0.00014566,2]
[394432195,1763567441639,-1388.78898259,0.00014566,2]
[394432196,1763567441650,-2468.95819126,0.00014566,2]
[394432197,1763567441659,-3857.74717385,0.00014566,2]
[394432198,1763567441669,-432.01520136,0.00014566,2]
[394432199,1763567441678,-167.46464336,0.00014566,2]
[394432200,1763567441688,-669.85857342,0.00014566,2]
[394432201,1763567441697,-1507.18179021,0.00014566,2]
[394432202,1763567441706,-273.0,0.00014578,2]
[394432203,1763567441715,-508.37402696,0.00014637,2]
[394432204,1763567441724,-194.9313925,0.00014665,2]
[394432205,1763567441734,-779.72556998,0.00014665,2]
[394432206,1763567441743,-1754.38253246,0.00014665,2]
[394432207,1763567441753,-598.8008618,0.00014665,2]
[394432208,1763567441762,-1077.84155123,0.00014665,2]
[394432209,1763567441771,-1916.16275774,0.00014665,2]
[394432210,1763567441780,-720.0,0.00014666,2]
[394432211,1763567441789,-1000.0,0.00014671,2]
[394432212,1763567441798,-1000.0,0.00014671,2]
[394432213,1763567441809,-1000.0,0.00014671,2]
[394432214,1763567441817,-1000.0,0.00014671,2]
[394432215,1763567441827,-447.75950493,0.00014671,2]
[394432216,1763567441836,-1000.0,0.00014671,2]
[394432217,1763567441845,-1000.0,0.00014671,2]
[394432218,1763567441854,-1000.0,0.00014671,2]
[394432219,1763567441862,-273.0,0.00014685,2]
[394432220,1763567441871,-273.0,0.00014787,2]
[394432221,1763567441881,-1163.00704943,0.00014798,2]
[394432222,1763567441890,-273.0,0.00014803,2]
[394432223,1763567441900,-278.44917665,0.00014821,2]
[394432224,1763567441909,-1163.00704943,0.00014855,2]
[394432225,1763567441918,-2679.4342937,0.00014857,2]
[394432226,1763567441927,-273.0,0.00014872,2]
[394432227,1763567441937,-3141.9837487,0.00014891,2]
[394432228,1763567441946,-1163.00704943,0.00014911,2]
[394432229,1763567441955,-273.0,0.00014928,2]
[394432230,1763567441965,-273.0,0.00014947,2]
[394432231,1763567441974,-727.81642466,0.00014948,2]
[394432232,1763567441984,-1163.00704943,0.00014968,2]
[394432233,1763567441994,-175.0,0.00015,2]
[394432234,1763567442003,-273.0,0.00015001,2]
[394432235,1763567442013,-273.0,0.00015017,2]
[394432236,1763567442022,-1163.00704943,0.00015024,2]
[394432237,1763567442031,-1163.00704943,0.00015081,2]
[394432238,1763567442040,-1164.17005648,0.00015137,2]
[394432239,1763567442049,-273.0,0.0001517,2]
[394432240,1763567442059,-273.0,0.0001521,2]
[394432241,1763567442068,-502.08764168,0.00015219,2]
[394432242,1763567442077,-214.70307751,0.00015219,2]
[394432243,1763567442086,-1500.0,0.00015219,2]
[394432244,1763567442095,-1500.0,0.00015219,2]
[394432245,1763567442104,-1500.0,0.00015219,2]
[394432246,1763567442114,-1500.0,0.00015219,2]
[394432247,1763567442123,-446.86266528,0.00015219,2]
[394432248,1763567442132,-273.0,0.00015289,2]
[394432249,1763567442142,-273.0,0.00015334,2]
[394432250,1763567442151,-273.0,0.00015361,2]
[394432251,1763567442160,-273.0,0.00015389,2]
[394432252,1763567442169,-273.0,0.00015431,2]
[394432253,1763567442179,-587.0,0.00015479,2]
[394432254,1763567442188,-273.0,0.00015483,2]
[394432255,1763567442197,-273.0,0.00015488,2]
[394432256,1763567442207,-160.0,0.00015533,2]
[394432257,1763567442216,-1024.734,0.0001555,2]
[394432258,1763567442225,-630.0,0.0001555,2]
[394432259,1763567442234,-2151.0,0.0001555,2]
[394432260,1763567442243,-273.0,0.00015568,2]
[394432261,1763567442252,-273.0,0.00015589,2]
[394432262,1763567442261,-273.0,0.00015637,2]
[394432263,1763567442270,-273.0,0.00015654,2]
[394432264,1763567442279,-5888.0,0.000157,2]
[394432265,1763567442288,-273.0,0.00015715,2]
[394432266,1763567442297,-677.64798293,0.00015767,2]
[394432267,1763567442308,-2000.0,0.00015767,2]
[394432268,1763567442318,-2000.0,0.00015767,2]
[394432269,1763567442331,-2000.0,0.00015767,2]
[394432270,1763567442339,-273.0,0.00015878,2]
[394432271,1763567442348,-1500.0,0.000159,2]
[394432272,1763567442358,-1500.0,0.000159,2]
[394432273,1763567442368,-1587.89,0.000159,2]
[394432274,1763567442377,-260.0,0.00016081,2]
[394432275,1763567442386,-864.0,0.00016133,2]
[394432276,1763567442396,-2500.0,0.00016315,2]
[394432277,1763567442406,-2500.0,0.00016315,2]
[394432278,1763567442415,-2500.0,0.00016315,2]
[394432279,1763567442424,-151.0,0.00016342,2]
[394432280,1763567442433,-151.0,0.00016342,2]
[394432281,1763567442442,-151.0,0.00016342,2]
[394432282,1763567442452,-375.985937,0.00016342,2]
[394432283,1763567442460,-375.985937,0.00016342,2]
[394432284,1763567442470,-375.985937,0.00016342,2]
[394432285,1763567442479,-375.985937,0.00016342,2]
[394432286,1763567442488,-151.0,0.00016342,2]
[394432287,1763567442497,-100000.0,0.00016342,2]
[394432288,1763567442507,-500.0,0.00016373,2]
[394432289,1763567442516,-500.0,0.00016373,2]
[394432290,1763567442525,-500.0,0.00016373,2]
[394432291,1763567442535,-562.95584651,0.00016373,2]
[394432292,1763567442544,-500.0,0.00016373,2]
[394432293,1763567442554,-154.95190618,0.0001638,2]
[394432294,1763567442563,-500.0,0.00016438,2]
[394432295,1763567442573,-500.0,0.00016438,2]
[394432296,1763567442582,-500.0,0.00016438,2]
[394432297,1763567442592,-500.0,0.00016438,2]
[394432298,1763567442601,-500.0,0.00016438,2]
[394432299,1763567442611,-500.0,0.00016438,2]
[394432300,1763567442620,-500.0,0.00016438,2]
[394432301,1763567442630,-500.0,0.00016438,2]
[394432302,1763567442639,-500.0,0.00016438,2]
[394432303,1763567442648,-500.0,0.00016438,2]
[394432304,1763567442657,-500.0,0.00016438,2]
[394432305,1763567442667,-500.0,0.00016438,2]
[394432306,1763567442676,-500.0,0.00016438,2]
[394432307,1763567442685,-452.63532289,0.00016438,2]
[394432308,1763567442694,-500.0,0.00016438,2]
[394432309,1763567442703,-500.0,0.00016438,2]
[394432310,1763567442713,-500.0,0.00016438,2]
[394432311,1763567442722,-500.0,0.00016438,2]
[394432313,1763567442731,-500.0,0.00016438,2]
[394432315,1763567442740,-500.0,0.00016438,2]
[394432317,1763567442749,-500.0,0.00016438,2]
[394432319,1763567442759,-500.0,0.00016438,2]
[394432321,1763567442769,-500.0,0.00016438,2]
[394432323,1763567442778,-500.0,0.00016438,2]
[394432324,1763567442788,-500.0,0.00016438,2]
[394432325,1763567442797,-500.0,0.00016438,2]
[394432326,1763567442808,-500.0,0.00016438,2]
[394432327,1763567442817,-500.0,0.00016438,2]
[394432328,1763567442826,-500.0,0.00016438,2]
[394432329,1763567442836,-500.0,0.00016438,2]
[394432330,1763567442845,-500.0,0.00016438,2]
[394432331,1763567442854,-500.0,0.00016438,2]
[394432332,1763567442863,-500.0,0.00016438,2]
[394432333,1763567442871,-500.0,0.00016438,2]
[394432334,1763567442879,-500.0,0.00016438,2]
[394432335,1763567442889,-500.0,0.00016438,2]
[394432336,1763567442899,-500.0,0.00016438,2]
[394432337,1763567442908,-500.0,0.00016438,2]
[394432338,1763567442918,-500.0,0.00016438,2]
[394432339,1763567442927,-500.0,0.00016438,2]
[394432340,1763567442937,-500.0,0.00016438,2]
[394432341,1763567442946,-500.0,0.00016438,2]
[394432342,1763567442956,-151.0,0.00016438,2]
[394432343,1763567442965,-151.0,0.00016438,2]
[394432344,1763567442975,-151.0,0.00016438,2]
[394432345,1763567442984,-360.0,0.00016629,2]
[394432346,1763567442993,-226.6219768,0.00016633,2]
[394432347,1763567443003,-317.0,0.00016818,2]
[394432348,1763567443012,-320.92447479,0.00016821,2]
[394432349,1763567443022,-3000.0,0.00016863,2]
[394432350,1763567443031,-3000.0,0.00016863,2]
[394432351,1763567443040,-3000.0,0.00016863,2]
[394432352,1763567443049,-1000.0,0.00016921,2]
[394432353,1763567443060,-1000.0,0.00016921,2]
[394432354,1763567443069,-1000.0,0.00016921,2]
[394432355,1763567443078,-513.32461506,0.00016921,2]
[394432356,1763567443088,-150.0,0.00016954,2]
[394432357,1763567443098,-150.0,0.00016954,2]
[394432358,1763567443107,-150.0,0.00016954,2]
[394432359,1763567443118,-150.0,0.00016954,2]
[394432360,1763567443127,-150.0,0.00016954,2]
[394432361,1763567443137,-150.0,0.00016954,2]
[394432362,1763567443146,-411.0,0.00016974,2]
[394432363,1763567443156,-823.0,0.00016978,2]
[394432364,1763567443166,-45839.12519212,0.00017,2]
[394432365,1763567443175,-158.419537,0.00017,2]
[394432366,1763567443185,-151.0,0.00017,2]
[394432367,1763567443195,-162.169979,0.00017,2]
[394432368,1763567443204,-375.985937,0.00017,2]
[394432369,1763567443213,-375.985937,0.00017,2]
[394432370,1763567443223,-375.985937,0.00017,2]
[394432371,1763567443232,-375.985937,0.00017,2]
[394432372,1763567443243,-151.0,0.00017,2]
[394432373,1763567443252,-240.14827,0.00017,2]
[394432374,1763567443261,-515.0,0.00017122,2]
[394432375,1763567443271,-460.0,0.00017177,2]
[394432376,1763567443281,-476.28038681,0.00017315,2]
[394432377,1763567443290,-151.0,0.00017328,2]
[394432378,1763567443299,-2513.00731581,0.00017411,2]
[394432379,1763567443313,-3500.0,0.00017411,2]
[394432380,1763567443323,-483.97337171,0.00017411,2]
[394432381,1763567443334,-230.70268587,0.00017436,2]
[394432382,1763567443343,-493.78487382,0.0001749,2]
[394432383,1763567443352,-2123.96963575,0.000176,2]
[394432384,1763567443361,-560.0,0.00017725,2]
[394432385,1763567443372,-1000.0,0.00017746,2]
[394432386,1763567443381,-4000.0,0.00017959,2]
[394432387,1763567443391,-229.64446559,0.00017987,2]
[394432388,1763567443401,-1501.39463472,0.00018,3]
[394432389,1763567443411,-148429.01968351,0.00018,2]
[394432390,1763567443421,-9687.27040259,0.00018,2]
[394432391,1763567443431,-29835.12559537,0.00018,2]
[394432392,1763567443440,-151.0,0.00018,2]
[394432393,1763567443450,-151.0,0.00018,2]
[394432394,1763567443459,-375.985937,0.00018,2]
[394432395,1763567443469,-375.985937,0.00018,2]
[394432396,1763567443479,-375.985937,0.00018,2]
[394432397,1763567443488,-375.985937,0.00018,2]
[394432398,1763567443498,-200.0,0.00018,3]
[394432399,1763567443508,-200.0,0.00018,3]
[394432400,1763567443517,-200.0,0.00018,3]
[394432401,1763567443527,-200.0,0.00018,3]
[394432402,1763567443619,-200.0,0.00018,3]
[394432403,1763567443628,-151.0,0.00018,2]
[394432404,1763567443637,-701.071337,0.00018105,2]
[394432405,1763567443646,-660.0,0.00018273,2]
[394432406,1763567443655,-154.4252435,0.0001842,2]
[394432407,1763567443665,-179.2500421,0.0001842,2]
[394432408,1763567443674,-164.4733938,0.0001842,2]
[394432409,1763567443683,-164.4733938,0.0001842,2]
[394432410,1763567443693,-164.4733938,0.0001842,2]
[394432411,1763567443703,-164.4733938,0.0001842,2]
[394432412,1763567443713,-164.4733938,0.0001842,2]
[394432413,1763567443722,-164.4733938,0.0001842,2]
[394432414,1763567443731,-164.4733938,0.0001842,2]
[394432415,1763567443741,-164.4733938,0.0001842,2]
[394432416,1763567443750,-164.4733938,0.0001842,2]
[394432417,1763567443759,-1982.87595568,0.00018507,2]
[394432418,1763567443768,-989.0,0.0001855,2]
[394432419,1763567443777,-630.0,0.0001855,2]
[394432420,1763567443786,-2151.0,0.0001855,2]
[394432421,1763567443795,-1152.0,0.00018622,2]
[394432422,1763567443804,-760.0,0.00018821,2]
[394432423,1763567443815,-363.39977292,0.00018821,2]
[394432424,1763567443826,-156.4301597,0.00018822,2]
[394432425,1763567443835,-857.30469626,0.00018829,2]
[394432426,1763567443844,-226.6219768,0.00018833,2]
[394432427,1763567443853,-415.26483457,0.00018912,2]
[394432428,1763567443864,-160.0,0.0001894,2]
[394432429,1763567443873,-160.0,0.00018942,2]
[394432430,1763567443883,-888.81277288,0.00019019,2]
[394432431,1763567443892,-153.84547182,0.00019178,2]
[394432432,1763567443902,-860.0,0.00019369,2]
[394432433,1763567443911,-1000.0,0.00019521,2]
[394432434,1763567443921,-244.0,0.00019521,2]
[394432436,1763567443930,-13022.79762429,0.000199,2]
[394432437,1763567443939,-960.0,0.00019917,2]
[394432438,1763567443949,-150.0,0.00019954,2]
[394432439,1763567443959,-150.0,0.00019954,2]
[394432440,1763567443968,-150.0,0.00019954,2]
[394432441,1763567443978,-150.0,0.00019954,2]
[394432442,1763567443988,-150.0,0.00019954,2]
[394432443,1763567443997,-150.0,0.00019954,2]
[394432444,1763567444007,-955.0,0.0002,2]
[394432445,1763567444017,-11655.35572389,0.0002,2]
[394432446,1763567444027,-14616.89995151,0.0002,2]
[394432447,1763567444037,-369.51969723,0.0002,2]
[394432448,1763567444046,-23000.0,0.0002,2]
[394432449,1763567444058,-201.5101141,0.0002,2]
[394432450,1763567444067,-501.38434486,0.0002,2]
[394432451,1763567444078,-300.0,0.0002,2]
[394432452,1763567444088,-151.0,0.0002,7]
[394432453,1763567444097,-375.985937,0.0002,7]
[394432454,1763567444107,-375.985937,0.0002,7]
[394432455,1763567444116,-375.985937,0.0002,7]
[394432456,1763567444130,-375.985932,0.0002,7]
[394432457,1763567444140,-2000.0,0.0002,7]
[394432458,1763567444149,-727.81642466,0.00020162,2]
[394432459,1763567444159,-1096.041942,0.00020187,2]
[394432460,1763567444168,-1613.0,0.00020425,2]
[394432461,1763567444178,-1060.0,0.00020465,2]
[394432462,1763567444188,-1017.177942,0.00020486,2]
[394432463,1763567444198,-500.0,0.00020519,2]
[394432464,1763567444207,-2544.3093,0.00020548,2]
[394432466,1763567444216,-151.0,0.00020548,3]
[394432468,1763567444226,-151.0,0.00020548,3]
[394432469,1763567444235,-151.0,0.00020548,3]
[394432470,1763567444244,-151.0,0.00020548,3]
[394432471,1763567444254,-159.28056,0.00020548,3]
[394432472,1763567444263,-501.18009364,0.00020574,2]
[394432473,1763567444272,-505.60972619,0.00020574,2]
[394432474,1763567444281,-500.0,0.00020574,2]
[394432475,1763567444290,-500.0,0.00020595,2]
[394432476,1763567444299,-503.70002224,0.00020595,2]
[394432477,1763567444311,-500.0,0.00020595,2]
[394432478,1763567444322,-500.0,0.00020595,2]
[394432479,1763567444332,-500.70555796,0.00020595,2]
[394432480,1763567444342,-500.0,0.00020595,2]
[394432481,1763567444352,-1381.26804338,0.0002061,2]
[394432482,1763567444362,-500.0,0.00020778,2]
[394432483,1763567444372,-500.0,0.00020778,2]
[394432484,1763567444382,-502.99408635,0.00020778,2]
[394432485,1763567444392,-500.0,0.00020778,2]
[394432486,1763567444403,-500.0,0.00020778,2]
[394432487,1763567444412,-500.0,0.00020778,2]
[394432488,1763567444421,-513.38764164,0.00020778,2]
[394432489,1763567444431,-500.0,0.00020778,2]
[394432490,1763567444440,-500.0,0.00020778,2]
[394432491,1763567444450,-500.0,0.00020778,2]
[394432492,1763567444460,-500.0,0.00020778,2]
[394432493,1763567444470,-500.0,0.00020778,2]
[394432494,1763567444479,-500.0,0.00020778,2]
[394432495,1763567444488,-500.0,0.00020778,2]
[394432496,1763567444498,-501.46865809,0.00020778,2]
[394432497,1763567444508,-165.48732767,0.00020778,2]
[394432498,1763567444517,-500.0,0.00020778,2]
[394432499,1763567444527,-500.0,0.00020778,2]
[394432500,1763567444536,-500.0,0.00020778,2]
[394432501,1763567444546,-500.0,0.00020778,2]
[394432502,1763567444556,-500.0,0.00020778,2]
[394432503,1763567444565,-300.55067029,0.00020778,2]
[394432504,1763567444575,-377.89329795,0.00020778,2]
[394432505,1763567444584,-500.0,0.00020778,2]
[394432506,1763567444593,-500.0,0.00020778,2]
[394432507,1763567444602,-500.0,0.00020805,2]
[394432508,1763567444611,-405.87507106,0.00020821,2]
[394432509,1763567444620,-500.0,0.00020895,2]
[394432510,1763567444630,-254.85895272,0.000209,2]
[394432511,1763567444639,-163.91419987,0.00020995,2]
[394432512,1763567444648,-275.63626958,0.00021,2]
[394432513,1763567444657,-35965.26898207,0.00021,2]
[394432514,1763567444667,-166.61202131,0.00021,2]
[394432515,1763567444676,-500.0,0.0002101,2]
[394432516,1763567444686,-1160.0,0.00021013,2]
[394432517,1763567444695,-226.6219768,0.00021033,2]
[394432518,1763567444704,-206.47813765,0.00021057,2]
[394432519,1763567444713,-1000.0,0.00021143,2]
[394432520,1763567444723,-1015.5092663,0.00021326,2]
[394432521,1763567444732,-1000.0,0.00021326,2]
[394432522,1763567444742,-1000.0,0.00021326,2]
[394432523,1763567444751,-430.56372962,0.00021326,2]
[394432524,1763567444761,-1000.0,0.00021326,2]
[394432525,1763567444770,-1000.0,0.00021326,2]
[394432526,1763567444780,-535.99228928,0.00021326,2]
[394432527,1763567444790,-557.60843727,0.00021326,2]
[394432528,1763567444800,-1000.0,0.00021326,2]
[394432529,1763567444810,-1000.0,0.00021326,2]
[394432530,1763567444820,-501.65067781,0.00021326,2]
[394432531,1763567444829,-500.14168158,0.00021326,2]
[394432532,1763567444839,-1000.0,0.00021326,2]
[394432533,1763567444848,-729.41128076,0.00021326,2]
[394432534,1763567444858,-1036.46863116,0.00021326,2]
[394432535,1763567444867,-505.96447598,0.00021326,2]
[394432536,1763567444876,-1000.0,0.00021326,2]
[394432537,1763567444886,-507.28708574,0.00021326,2]
[394432538,1763567444896,-1003.44060064,0.00021443,2]
[394432539,1763567444906,-450.0,0.00021473,20]
[394432540,1763567444916,-492.0,0.00021473,20]
[394432541,1763567444925,-989.0,0.0002155,2]
[394432542,1763567444934,-630.0,0.0002155,2]
[394432543,1763567444943,-2151.0,0.0002155,2]
[394432544,1763567444952,-1000.0,0.00021558,2]
[394432545,1763567444961,-151.0,0.00021558,7]
[394432546,1763567444971,-1260.0,0.00021561,2]
[394432547,1763567444980,-500.0,0.00021874,2]
[394432548,1763567444991,-1500.0,0.00021874,2]
[394432549,1763567445008,-944.92975414,0.00021874,2]
[394432550,1763567445020,-1500.0,0.00021874,2]
[394432551,1763567445029,-1500.0,0.00021874,2]
[394432552,1763567445039,-750.19,0.00021917,2]
[394432553,1763567445048,-597.456362,0.00021918,2]
[394432554,1763567445059,-597.456362,0.00021918,2]
[394432555,1763567445069,-597.456362,0.00021918,2]
[394432556,1763567445079,-597.456362,0.00021918,2]
[394432557,1763567445089,-597.456362,0.00021918,2]
[394432558,1763567445098,-597.456362,0.00021918,2]
[394432559,1763567445108,-597.456362,0.00021918,2]
[394432560,1763567445117,-597.456362,0.00021918,2]
[394432561,1763567445126,-597.456362,0.00021918,2]
[394432562,1763567445135,-597.456362,0.00021918,2]
[394432563,1763567445145,-597.456362,0.00021918,2]
[394432564,1763567445154,-597.456362,0.00021918,2]
[394432565,1763567445163,-597.456362,0.00021918,2]
[394432566,1763567445173,-597.456362,0.00021918,2]
[394432567,1763567445182,-597.456362,0.00021918,2]
[394432568,1763567445191,-597.456362,0.00021918,2]
[394432569,1763567445200,-597.456362,0.00021918,2]
[394432570,1763567445210,-597.456362,0.00021918,2]
[394432571,1763567445219,-597.456362,0.00021918,2]
[394432572,1763567445228,-597.456367,0.00021918,2]
[394432573,1763567445237,-259.977634,0.00021918,7]
[394432574,1763567445247,-259.977634,0.00021918,7]
[394432575,1763567445256,-259.977634,0.00021918,7]
[394432576,1763567445265,-259.977634,0.00021918,7]
[394432577,1763567445274,-259.977634,0.00021918,7]
[394432578,1763567445283,-259.977634,0.00021918,7]
[394432579,1763567445294,-259.977634,0.00021918,7]
[394432580,1763567445303,-259.977634,0.00021918,7]
[394432581,1763567445313,-259.977634,0.00021918,7]
[394432583,1763567445324,-259.977634,0.00021918,7]
[394432584,1763567445335,-259.977634,0.00021918,7]
[394432585,1763567445344,-259.977634,0.00021918,7]
[394432586,1763567445353,-259.977634,0.00021918,7]
[394432587,1763567445362,-259.977634,0.00021918,7]
[394432588,1763567445373,-259.977634,0.00021918,7]
[394432590,1763567445382,-259.977634,0.00021918,7]
[394432591,1763567445391,-259.977634,0.00021918,7]
[394432592,1763567445400,-259.977634,0.00021918,7]
[394432593,1763567445411,-259.977634,0.00021918,7]
[394432594,1763567445419,-259.977626,0.00021918,7]
[394432595,1763567445429,-300.0,0.00021918,2]
[394432596,1763567445438,-500.0,0.00021918,2]
[394432597,1763567445447,-500.0,0.00021918,2]
[394432598,1763567445456,-500.0,0.00021918,2]
[394432599,1763567445465,-500.0,0.00021918,2]
[394432600,1763567445474,-500.0,0.00021918,2]